fUST/lending_fUST_20250214
["ID","MTS","AMOUNT","RATE_DAILY","PERIOD"]
[353047748,1739521839809,-500.0,0.0001378,2]
[353047749,1739521839819,-500.0,0.0001378,2]
[353047750,1739521839828,-500.0,0.0001378,2]
[353047751,1739521839839,-2133.48,0.0001378,2]
[353047752,1739521839849,-500.0,0.0001378,2]
[353047753,1739521839859,-500.0,0.0001378,2]
[353047754,1739521839870,-924.68,0.0001378,2]
[353047755,1739521839880,-500.0,0.0001378,2]
[353047756,1739521839892,-500.0,0.0001378,2]
[353047757,1739521839901,-500.0,0.0001378,2]
[353047758,1739521839919,-500.0,0.0001378,2]
[353047759,1739521839934,-500.0,0.0001378,2]
[353047760,1739521839943,-642.41,0.0001378,2]
[353047762,1739521839954,-2498.24,0.0001378,2]
[353047764,1739521839964,-500.0,0.0001378,2]
[353047765,1739521839973,-26718.61,0.0001378,2]
[353047766,1739521839984,-500.0,0.0001378,2]
[353047767,1739521839997,-500.0,0.0001378,2]
[353047768,1739521840007,-500.0,0.0001378,2]
[353047769,1739521840019,-500.0,0.0001378,2]
[353047770,1739521840029,-500.0,0.0001378,2]
[353047771,1739521840039,-500.0,0.0001378,2]
[353047772,1739521840048,-500.0,0.0001378,2]
[353047773,1739521840060,-500.0,0.0001378,2]
[353047774,1739521840069,-886.86,0.0001378,2]
[353047775,1739521840079,-505.62361308,0.0001378,2]
[353047776,1739521840088,-819.19,0.0001378,2]
[353047777,1739521840099,-500.0,0.0001378,2]
[353047779,1739521840109,-500.0,0.0001378,2]
[353047780,1739521840120,-500.0,0.0001378,2]
[353047781,1739521840129,-500.0,0.0001378,2]
[353047782,1739521840139,-500.0,0.0001378,2]
[353047783,1739521840149,-500.0,0.0001378,2]
[353047784,1739521840160,-500.0,0.0001378,2]
[353047785,1739521840170,-500.0,0.0001378,2]
[353047786,1739521840180,-500.0,0.0001378,2]
[353047787,1739521840190,-500.0,0.0001378,2]
[353047788,1739521840200,-1579.58,0.0001378,2]
[353047789,1739521840209,-500.0,0.0001378,2]
[353047790,1739521840219,-500.0,0.0001378,2]
[353047791,1739521840229,-500.0,0.0001378,2]
[353047792,1739521840239,-5970.73,0.0001378,2]
[353047793,1739521840248,-500.0,0.0001378,2]
[353047794,1739521840258,-500.0,0.0001378,2]
[353047795,1739521840268,-269.43353608,0.0001378,2]
[353047797,1739521840277,-500.0,0.0001378,2]
[353047799,1739521840287,-500.0,0.0001378,2]
[353047800,1739521840297,-500.0,0.0001378,2]
[353047801,1739521840308,-506.47055434,0.0001378,2]
[353047802,1739521840317,-500.0,0.0001378,2]
[353047804,1739521840327,-500.0,0.0001378,2]
[353047805,1739521840336,-500.0,0.0001378,2]
[353047807,1739521840345,-500.0,0.0001378,2]
[353047808,1739521840356,-500.0,0.0001378,2]
[353047809,1739521840368,-500.0,0.0001378,2]
[353047810,1739521840379,-1769.66,0.0001378,2]
[353047812,1739521840388,-500.0,0.0001378,2]
[353047813,1739521840398,-500.0,0.0001378,2]
[353047814,1739521840407,-847.31,0.0001378,2]
[353047815,1739521840417,-500.0,0.0001378,2]
[353047816,1739521840426,-502.99684312,0.0001378,2]
[353047817,1739521840436,-500.0,0.0001378,2]
[353047819,1739521840446,-500.0,0.0001378,2]
[353047821,1739521840455,-500.0,0.0001378,2]
[353047823,1739521840465,-500.0,0.0001378,2]
[353047825,1739521840474,-576.42,0.0001378,2]
[353047827,1739521840484,-500.0,0.0001378,2]
[353047829,1739521840494,-500.0,0.0001378,2]
[353047831,1739521840503,-500.0,0.0001378,2]
[353047832,1739521840513,-500.0,0.0001378,2]
[353047835,1739521840637,-500.0,0.0001378,2]
[353047836,1739521840658,-500.0,0.0001378,2]
[353047837,1739521840667,-500.0,0.0001378,2]
[353047838,1739521840676,-563.68,0.0001378,2]
[353047839,1739521840686,-500.0,0.0001378,2]
[353047840,1739521840695,-500.0,0.0001378,2]
[353047841,1739521840710,-500.0,0.0001378,2]
[353047842,1739521840723,-504.19583548,0.0001378,2]
[353047843,1739521840733,-747.57,0.0001378,2]
[353047844,1739521840743,-500.0,0.0001378,2]
[353047845,1739521840752,-500.0,0.0001378,2]
[353047846,1739521840762,-500.0,0.0001378,2]
[353047847,1739521840772,-500.0,0.0001378,2]
[353047848,1739521840782,-500.0,0.0001378,2]
[353047849,1739521840792,-500.0,0.0001378,2]
[353047850,1739521840803,-500.0,0.0001378,2]
[353047851,1739521840814,-1944.51,0.0001378,2]
[353047852,1739521840823,-500.0,0.0001378,2]
[353047853,1739521840833,-500.0,0.0001378,2]
[353047854,1739521840843,-500.0,0.0001378,2]
[353047855,1739521840852,-503.9853436,0.0001378,2]
[353047856,1739521840861,-516.54,0.0001378,2]
[353047857,1739521840871,-642.35,0.0001378,2]
[353047858,1739521840880,-7912.76,0.0001378,2]
[353047859,1739521840890,-500.0,0.0001378,2]
[353047860,1739521840899,-500.0,0.0001378,2]
[353047861,1739521840909,-500.0,0.0001378,2]
[353047862,1739521840918,-855.73,0.0001378,2]
[353047863,1739521840928,-500.0,0.0001378,2]
[353047864,1739521840937,-500.0,0.0001378,2]
[353047865,1739521840947,-500.0,0.0001378,2]
[353047866,1739521840956,-500.0,0.0001378,2]
[353047867,1739521840966,-500.0,0.0001378,2]
[353047868,1739521840978,-500.0,0.0001378,2]
[353047869,1739521840987,-500.0,0.0001378,2]
[353047870,1739521840997,-500.0,0.0001378,2]
[353047871,1739521841007,-500.0,0.0001378,2]
[353047872,1739521841016,-500.0,0.0001378,2]
[353047873,1739521841026,-500.0,0.0001378,2]
[353047874,1739521841035,-500.0,0.0001378,2]
[353047875,1739521841045,-500.0,0.0001378,2]
[353047876,1739521841055,-352.68034823,0.0001378,2]
[353047877,1739521841377,-500.0,0.00013698,2]
[353047878,1739521841387,-2188.10965177,0.0001378,2]
[353047879,1739521841398,-500.0,0.0001378,2]
[353047880,1739521841407,-500.0,0.0001378,2]
[353047881,1739521841419,-500.0,0.0001378,2]
[353047882,1739521841430,-500.0,0.0001378,2]
[353047883,1739521841440,-500.0,0.0001378,2]
[353047884,1739521841450,-500.0,0.0001378,2]
[353047885,1739521841459,-500.0,0.0001378,2]
[353047886,1739521841471,-2505.67,0.0001378,2]
[353047887,1739521841482,-500.0,0.0001378,2]
[353047888,1739521841492,-500.0,0.0001378,2]
[353047889,1739521841501,-500.0,0.0001378,2]
[353047890,1739521841511,-5371.81,0.0001378,2]
[353047891,1739521841521,-500.0,0.0001378,2]
[353047892,1739521841530,-500.0,0.0001378,2]
[353047893,1739521841540,-457.02130959,0.0001378,2]
[353047894,1739521841550,-500.0,0.0001378,2]
[353047895,1739521841561,-500.0,0.0001378,2]
[353047896,1739521841570,-500.0,0.0001378,2]
[353047897,1739521841582,-500.0,0.0001378,2]
[353047898,1739521841591,-500.0,0.0001378,2]
[353047899,1739521841600,-406.31846313,0.00013816,2]
[353047900,1739521841609,-7796.4604428,0.0001382,2]
[353047901,1739521841621,-1015.23430814,0.0001382,2]
[353047902,1739521841632,-3392.60298933,0.0001382,2]
[353047903,1739521841641,-559.91058894,0.00013835,2]
[353047904,1739521841651,-541.03290781,0.00013849,2]
[353047905,1739521841660,-500.0,0.00013849,2]
[353047906,1739521841669,-500.0,0.00013862,2]
[353047907,1739521841679,-500.0,0.00013862,2]
[353047908,1739521841689,-500.0,0.00013862,2]
[353047909,1739521841703,-500.0,0.00013863,2]
[353047910,1739521841713,-500.0,0.00013863,2]
[353047911,1739521841722,-369.02986668,0.00013863,2]
[353047912,1739521841732,-182.08696166,0.00013863,2]
[353047913,1739521841741,-500.0,0.00013863,2]
[353047914,1739521841751,-500.0,0.00013863,2]
[353047915,1739521841760,-500.0,0.00013863,2]
[353047916,1739521841769,-500.0,0.00013863,2]
[353047917,1739521841782,-500.0,0.00013863,2]
[353047918,1739521841792,-382.47109495,0.00013863,2]
[353047919,1739521841801,-503.20914958,0.00013863,2]
[353047920,1739521841811,-500.0,0.00013863,2]
[353047921,1739521841820,-500.0,0.00013863,2]
[353047922,1739521841829,-500.0,0.00013863,2]
[353047923,1739521841839,-500.0,0.00013863,2]
[353047924,1739521841848,-500.0,0.00013863,2]
[353047925,1739521841857,-500.0,0.00013863,2]
[353047926,1739521841865,-500.0,0.00013863,2]
[353047927,1739521841876,-500.0,0.00013863,2]
[353047928,1739521841885,-500.0,0.00013863,2]
[353047929,1739521841895,-523.7918623,0.00013863,2]
[353047930,1739521841904,-562.96,0.00013863,2]
[353047931,1739521841913,-500.0,0.00013863,2]
[353047932,1739521841922,-500.0,0.00013863,2]
[353047933,1739521841932,-500.0,0.00013863,2]
[353047934,1739521841941,-500.0,0.00013863,2]
[353047935,1739521841950,-500.0,0.00013863,2]
[353047936,1739521841960,-500.0,0.00013863,2]
[353047937,1739521841969,-500.0,0.00013863,2]
[353047938,1739521841979,-500.0,0.00013863,2]
[353047939,1739521841988,-500.0,0.00013863,2]
[353047940,1739521841998,-500.0,0.00013863,2]
[353047941,1739521842008,-505.3,0.00013863,2]
[353047942,1739521842017,-434.69141676,0.00013863,2]
[353047943,1739521842027,-500.0,0.00013863,2]
[353047944,1739521842036,-412.50276854,0.00013863,2]
[353047945,1739521842045,-1130.64321443,0.00013863,2]
[353047946,1739521842145,-1066.60678557,0.00013863,2]
[353047947,1739521842156,-500.0,0.00013863,2]
[353047948,1739521842166,-696.13,0.00013863,2]
[353047949,1739521842175,-504.54755658,0.00013863,2]
[353047950,1739521842185,-500.0,0.00013863,2]
[353047951,1739521842195,-500.0,0.00013863,2]
[353047952,1739521842205,-500.0,0.00013863,2]
[353047953,1739521842216,-490.0,0.00013863,2]
[353047954,1739521842226,-500.0,0.00013863,2]
[353047955,1739521842236,-500.1,0.00013863,2]
[353047956,1739521842246,-326.05,0.00013863,2]
[353047957,1739521842255,-291.80128598,0.00013863,2]
[353047958,1739521842266,-500.0,0.00013863,2]
[353047959,1739521842275,-500.0,0.00013863,2]
[353047960,1739521842285,-500.0,0.00013863,2]
[353047961,1739521842295,-2133.48,0.00013863,2]
[353047962,1739521842306,-500.0,0.00013863,2]
[353047963,1739521842317,-500.0,0.00013863,2]
[353047964,1739521842327,-924.68,0.00013863,2]
[353047965,1739521842337,-500.0,0.00013863,2]
[353047966,1739521842347,-500.0,0.00013863,2]
[353047967,1739521842357,-642.41,0.00013863,2]
[353047968,1739521842368,-2498.24,0.00013863,2]
[353047969,1739521842379,-500.0,0.00013863,2]
[353047970,1739521842391,-500.0,0.00013863,2]
[353047971,1739521842402,-500.0,0.00013863,2]
[353047972,1739521842414,-500.0,0.00013863,2]
[353047973,1739521842427,-500.0,0.00013863,2]
[353047974,1739521842438,-500.0,0.00013863,2]
[353047975,1739521842450,-500.0,0.00013863,2]
[353047976,1739521842460,-500.0,0.00013863,2]
[353047977,1739521842471,-886.86,0.00013863,2]
[353047978,1739521842480,-819.19,0.00013863,2]
[353047979,1739521842490,-500.0,0.00013863,2]
[353047980,1739521842500,-500.0,0.00013863,2]
[353047981,1739521842510,-500.0,0.00013863,2]
[353047982,1739521842520,-170.60194545,0.00013863,2]
[353047983,1739521842533,-329.39805455,0.00013863,2]
[353047984,1739521842543,-500.0,0.00013863,2]
[353047985,1739521842553,-500.0,0.00013863,2]
[353047986,1739521842562,-577.96724556,0.00013863,2]
[353047987,1739521842572,-500.0,0.00013863,2]
[353047988,1739521842582,-1579.58,0.00013863,2]
[353047989,1739521842592,-500.0,0.00013863,2]
[353047990,1739521842601,-500.0,0.00013863,2]
[353047991,1739521842611,-5970.73,0.00013863,2]
[353047992,1739521842620,-500.0,0.00013863,2]
[353047993,1739521842631,-500.0,0.00013863,2]
[353047994,1739521842640,-500.0,0.00013863,2]
[353047995,1739521842650,-500.0,0.00013863,2]
[353047996,1739521842659,-500.0,0.00013863,2]
[353047997,1739521842669,-500.0,0.00013863,2]
[353047998,1739521842679,-500.0,0.00013863,2]
[353047999,1739521842688,-500.0,0.00013863,2]
[353048000,1739521842698,-592.56,0.00013863,2]
[353048001,1739521842711,-1769.66,0.00013863,2]
[353048002,1739521842720,-503.50340167,0.00013863,2]
[353048003,1739521842730,-500.0,0.00013863,2]
[353048004,1739521842740,-847.31,0.00013863,2]
[353048005,1739521842750,-500.0,0.00013863,2]
[353048006,1739521842760,-500.0,0.00013863,2]
[353048007,1739521842772,-500.0,0.00013863,2]
[353048009,1739521842783,-500.0,0.00013863,2]
[353048011,1739521842793,-576.42,0.00013863,2]
[353048012,1739521842803,-500.0,0.00013863,2]
[353048013,1739521842813,-500.0,0.00013863,2]
[353048014,1739521842823,-500.0,0.00013863,2]
[353048015,1739521842832,-502.24315677,0.00013863,2]
[353048018,1739521842971,-500.0,0.00013863,2]
[353048019,1739521842981,-500.0,0.00013863,2]
[353048021,1739521842991,-563.68,0.00013863,2]
[353048022,1739521843002,-500.0,0.00013863,2]
[353048023,1739521843011,-747.57,0.00013863,2]
[353048024,1739521843021,-500.0,0.00013863,2]
[353048025,1739521843031,-500.0,0.00013863,2]
[353048026,1739521843041,-500.0,0.00013863,2]
[353048027,1739521843051,-500.0,0.00013863,2]
[353048028,1739521843062,-500.0,0.00013863,2]
[353048029,1739521843071,-500.0,0.00013863,2]
[353048030,1739521843081,-500.0,0.00013863,2]
[353048031,1739521843091,-1944.51,0.00013863,2]
[353048032,1739521843100,-500.0,0.00013863,2]
[353048034,1739521843110,-503.74276911,0.00013863,2]
[353048035,1739521843120,-500.0,0.00013863,2]
[353048036,1739521843130,-516.54,0.00013863,2]
[353048037,1739521843141,-642.35,0.00013863,2]
[353048038,1739521843153,-7912.76,0.00013863,2]
[353048040,1739521843164,-500.0,0.00013863,2]
[353048041,1739521843175,-500.0,0.00013863,2]
[353048044,1739521843185,-500.0,0.00013863,2]
[353048045,1739521843195,-855.73,0.00013863,2]
[353048047,1739521843204,-500.0,0.00013863,2]
[353048049,1739521843215,-500.0,0.00013863,2]
[353048051,1739521843225,-500.0,0.00013863,2]
[353048054,1739521843236,-500.0,0.00013863,2]
[353048055,1739521843246,-500.0,0.00013863,2]
[353048057,1739521843256,-500.0,0.00013863,2]
[353048059,1739521843266,-500.0,0.00013863,2]
[353048062,1739521843277,-500.0,0.00013863,2]
[353048064,1739521843288,-2540.79,0.00013863,2]
[353048066,1739521843299,-614.15177362,0.00013863,2]
[353048068,1739521843313,-249.58592137,0.00013863,2]
[353048070,1739521843323,-566.81,0.00013863,2]
[353048071,1739521843333,-500.0,0.00013863,2]
[353048072,1739521843343,-500.0,0.00013863,2]
[353048073,1739521843352,-500.0,0.00013863,2]
[353048074,1739521843362,-2505.67,0.00013863,2]
[353048075,1739521843372,-500.0,0.00013863,2]
[353048076,1739521843382,-500.0,0.00013863,2]
[353048077,1739521843392,-5371.81,0.00013863,2]
[353048078,1739521843402,-512.98125807,0.00013863,2]
[353048079,1739521843412,-500.0,0.00013863,2]
[353048080,1739521843422,-500.0,0.00013863,2]
[353048081,1739521843432,-500.0,0.00013863,2]
[353048082,1739521843441,-500.0,0.00013863,2]
[353048083,1739521843451,-406.31846313,0.0001387,2]
[353048084,1739521843462,-151.0,0.000139,2]
[353048085,1739521843471,-4285.66002093,0.000139,2]
[353048086,1739521843481,-523.4096076,0.0001393,2]
[353048087,1739521843490,-176.374705,0.00013931,2]
[353048088,1739521843501,-176.374705,0.00013931,2]
[353048089,1739521843510,-151.0,0.00013931,2]
[353048090,1739521843519,-500.0,0.00013931,2]
[353048091,1739521843530,-251.90420993,0.00013944,2]
[353048092,1739521843540,-500.0,0.00013944,2]
[353048093,1739521843551,-462.28623262,0.00013944,2]
[353048094,1739521843567,-500.0,0.00013944,2]
[353048095,1739521843579,-500.0,0.00013944,2]
[353048096,1739521843598,-500.0,0.00013944,2]
[353048097,1739521843609,-176.33294695,0.00013944,2]
[353048098,1739521843619,-473.514646,0.00013945,2]
[353048099,1739521843629,-473.514646,0.00013945,2]
[353048100,1739521843639,-500.0,0.00013945,2]
[353048101,1739521843649,-500.0,0.00013945,2]
[353048102,1739521843660,-500.0,0.00013945,2]
[353048103,1739521843670,-500.0,0.00013945,2]
[353048104,1739521843680,-503.67824756,0.00013945,2]
[353048105,1739521843690,-500.0,0.00013945,2]
[353048106,1739521843701,-500.0,0.00013945,2]
[353048108,1739521843714,-500.0,0.00013945,2]
[353048109,1739521843724,-500.0,0.00013945,2]
[353048110,1739521843733,-500.0,0.00013945,2]
[353048111,1739521843743,-184.4,0.00013945,2]
[353048112,1739521843754,-219.57,0.00013945,2]
[353048113,1739521843764,-500.0,0.00013945,2]
[353048114,1739521843774,-500.0,0.00013945,2]
[353048115,1739521843787,-502.63645887,0.00013945,2]
[353048116,1739521843798,-554.7766461,0.00013945,2]
[353048117,1739521843809,-500.0,0.00013945,2]
[353048118,1739521843819,-2197.25,0.00013945,2]
[353048119,1739521843829,-500.0,0.00013945,2]
[353048120,1739521843840,-696.13,0.00013945,2]
[353048121,1739521843850,-500.0,0.00013945,2]
[353048122,1739521843861,-500.0,0.00013945,2]
[353048123,1739521843872,-500.0,0.00013945,2]
[353048124,1739521843882,-314.91864897,0.00013945,2]
[353048125,1739521843892,-2133.48,0.00013945,2]
[353048126,1739521843902,-500.0,0.00013945,2]
[353048127,1739521843912,-924.68,0.00013945,2]
[353048128,1739521843921,-500.0,0.00013945,2]
[353048129,1739521843931,-500.0,0.00013945,2]
[353048130,1739521843941,-642.41,0.00013945,2]
[353048131,1739521843951,-2498.24,0.00013945,2]
[353048132,1739521843962,-500.0,0.00013945,2]
[353048133,1739521843973,-500.0,0.00013945,2]
[353048134,1739521843983,-500.0,0.00013945,2]
[353048135,1739521843993,-500.0,0.00013945,2]
[353048136,1739521844003,-886.86,0.00013945,2]
[353048137,1739521844012,-819.19,0.00013945,2]
[353048138,1739521844023,-500.0,0.00013945,2]
[353048139,1739521844034,-500.0,0.00013945,2]
[353048140,1739521844044,-502.33325102,0.00013945,2]
[353048141,1739521844056,-500.0,0.00013945,2]
[353048142,1739521844066,-500.0,0.00013945,2]
[353048143,1739521844076,-500.0,0.00013945,2]
[353048144,1739521844086,-1579.58,0.00013945,2]
[353048145,1739521844095,-189.15,0.00013945,2]
[353048146,1739521844106,-5970.73,0.00013945,2]
[353048147,1739521844117,-500.0,0.00013945,2]
[353048148,1739521844127,-500.0,0.00013945,2]
[353048149,1739521844138,-500.0,0.00013945,2]
[353048150,1739521844148,-500.0,0.00013945,2]
[353048151,1739521844158,-500.0,0.00013945,2]
[353048152,1739521844168,-1769.66,0.00013945,2]
[353048153,1739521844179,-504.77482639,0.00013945,2]
[353048154,1739521844189,-847.31,0.00013945,2]
[353048155,1739521844200,-502.11434103,0.00013945,2]
[353048156,1739521844211,-576.42,0.00013945,2]
[353048157,1739521844221,-500.0,0.00013945,2]
[353048158,1739521844231,-647.27,0.00013945,2]
[353048159,1739521844241,-500.0,0.00013945,2]
[353048160,1739521844252,-500.0,0.00013945,2]
[353048161,1739521844262,-563.68,0.00013945,2]
[353048162,1739521844272,-500.0,0.00013945,2]
[353048163,1739521844282,-747.57,0.00013945,2]
[353048164,1739521844292,-500.0,0.00013945,2]
[353048165,1739521844302,-500.0,0.00013945,2]
[353048166,1739521844314,-500.0,0.00013945,2]
[353048167,1739521844324,-503.50750254,0.00013945,2]
[353048168,1739521844334,-500.0,0.00013945,2]
[353048169,1739521844344,-1944.51,0.00013945,2]
[353048170,1739521844354,-500.0,0.00013945,2]
[353048171,1739521844364,-516.54,0.00013945,2]
[353048172,1739521844373,-642.35,0.00013945,2]
[353048173,1739521844383,-7912.76,0.00013945,2]
[353048174,1739521844392,-500.0,0.00013945,2]
[353048175,1739521844403,-855.73,0.00013945,2]
[353048176,1739521844412,-500.0,0.00013945,2]
[353048177,1739521844422,-500.0,0.00013945,2]
[353048178,1739521844432,-500.0,0.00013945,2]
[353048179,1739521844441,-500.0,0.00013945,2]
[353048180,1739521844451,-500.0,0.00013945,2]
[353048181,1739521844461,-2540.79,0.00013945,2]
[353048182,1739521844471,-500.0,0.00013945,2]
[353048183,1739521844480,-2505.67,0.00013945,2]
[353048184,1739521844491,-500.0,0.00013945,2]
[353048185,1739521844499,-500.0,0.00013945,2]
[353048186,1739521844508,-5371.81,0.00013945,2]
[353048187,1739521844519,-500.0,0.00013945,2]
[353048188,1739521844529,-500.0,0.00013945,2]
[353048189,1739521844540,-500.0,0.00013945,2]
[353048190,1739521844550,-7438.69753278,0.00013947,2]
[353048191,1739521844561,-151.11196962,0.00013968,2]
[353048192,1739521844570,-152.07800689,0.00013973,2]
[353048193,1739521844580,-500.0,0.00013973,2]
[353048194,1739521844590,-500.0,0.00013973,2]
[353048195,1739521844600,-500.0,0.00013973,2]
[353048196,1739521844610,-500.0,0.00013973,2]
[353048197,1739521844620,-516.63050703,0.00013973,2]
[353048198,1739521844630,-399.91996685,0.00013973,2]
[353048199,1739521844641,-168.25224142,0.00013973,2]
[353048200,1739521844651,-224.22204523,0.00013998,2]
[353048201,1739521844662,-724.20899527,0.00014,5]
[353048202,1739521844672,-151.0,0.00014,2]
[353048203,1739521844682,-1894729.17453972,0.00014,5]
[353048204,1739521845243,-500.0,0.00013698,2]
[353048205,1739521845253,-500.0,0.00013698,2]
[353048206,1739521845264,-3098.08,0.00013698,2]
[353048207,1739521845274,-500.0,0.00013698,2]
[353048208,1739521845284,-507.20029289,0.00013698,2]
[353048209,1739521845295,-3098.08,0.0001378,2]
[353048210,1739521845304,-500.0,0.0001378,2]
[353048211,1739521845314,-3098.08,0.00013863,2]
[353048212,1739521845324,-500.0,0.00013863,2]
[353048213,1739521845334,-406.31846313,0.00013925,2]
[353048214,1739521845344,-3098.08,0.00013945,2]
[353048215,1739521845353,-500.0,0.00013945,2]
[353048216,1739521845363,-2945.96124398,0.00014,5]
[353048280,1739523038520,-162.582494,0.00010685,2]
[353048281,1739523038531,-6652.4520118,0.00012686,2]
[353048282,1739523038540,-609.27960019,0.00013597,2]
[353048283,1739523038550,-300.0,0.00013597,2]
[353048284,1739523038559,-3000.0,0.00013598,2]
[353048285,1739523038569,-3655.10531797,0.000136,2]
[353048287,1739523040713,-845.78336498,0.000136,2]
[353048288,1739523040767,-1999.79734688,0.000136,2]
[353048322,1739523043590,-1677.28475584,0.000136,2]
[353048378,1739523046579,-6499.7743995,0.000136,2]
[353048386,1739523297388,6668.87755206,0.00016,120]
[353048529,1739524235797,-300.0,0.00010472,2]
[353048530,1739524235809,-55.80806823,0.00010472,2]
[353048531,1739524235818,-162.582494,0.00010685,2]
[353048532,1739524235828,-157.909661,0.00012579,2]
[353048533,1739524235843,-157.909661,0.00012642,2]
[353048534,1739524235854,-800.0,0.00012993,2]
[353048535,1739524235863,-300.0,0.00013168,2]
[353048536,1739524235874,-12204.29774028,0.00013169,2]
[353048537,1739524235883,-309.0040078,0.000135,2]
[353048538,1739524235893,-412.1409438,0.000135,2]
[353048539,1739524235903,-652.14929751,0.000135,2]
[353048540,1739524235913,-182.44391418,0.000135,2]
[353048541,1739524235923,-362.10449763,0.00013599,5]
[353048542,1739524235932,-24320.9499349,0.00013599,2]
[353048543,1739524235941,-38487.96074889,0.000136,2]
[353048544,1739524235953,-569.71007963,0.000136,2]
[353048554,1739524238880,-105975.42908143,0.000136,2]
[353048555,1739524238890,-202.0,0.000136,4]
[353048556,1739524238900,-202.0,0.000136,5]
[353048557,1739524238911,-202.0,0.000136,6]
[353048558,1739524238921,-202.0,0.000136,7]
[353048559,1739524238931,-202.0,0.000136,7]
[353048561,1739524238940,-202.0,0.000136,6]
[353048563,1739524238950,-202.0,0.000136,5]
[353048565,1739524238959,-202.0,0.000136,4]
[353048567,1739524238968,-202.0,0.000136,3]
[353048569,1739524238978,-219.41875594,0.000136,3]
[353048570,1739524238988,-153.0,0.000136,2]
[353048571,1739524238998,-154.6488878,0.000136,2]
[353048572,1739524239008,-652.14929745,0.00013629,2]
[353048573,1739524239017,-3000.0,0.0001368,2]
[353048574,1739524239026,-4998.4458693,0.0001369,2]
[353048575,1739524239036,-500.0,0.00013697,2]
[353048576,1739524239045,-500.0,0.00013697,2]
[353048577,1739524239055,-500.0,0.00013697,2]
[353048578,1739524239064,-500.0,0.00013697,2]
[353048579,1739524239073,-500.0,0.00013697,2]
[353048580,1739524239082,-500.0,0.00013697,2]
[353048581,1739524239091,-500.0,0.00013697,2]
[353048582,1739524239101,-500.0,0.00013697,2]
[353048583,1739524239110,-500.0,0.00013697,2]
[353048584,1739524239119,-500.0,0.00013697,2]
[353048585,1739524239128,-500.0,0.00013697,2]
[353048586,1739524239138,-300.0,0.00013697,2]
[353048587,1739524239147,-500.0,0.00013697,2]
[353048588,1739524239157,-500.0,0.00013697,2]
[353048589,1739524239167,-500.0,0.00013697,2]
[353048590,1739524239176,-500.0,0.00013697,2]
[353048591,1739524239185,-500.0,0.00013697,2]
[353048592,1739524239194,-500.0,0.00013697,2]
[353048593,1739524239203,-500.0,0.00013697,2]
[353048594,1739524239213,-500.0,0.00013697,2]
[353048595,1739524239222,-500.0,0.00013697,2]
[353048596,1739524239232,-500.0,0.00013697,2]
[353048597,1739524239241,-500.0,0.00013697,2]
[353048598,1739524239250,-500.0,0.00013697,2]
[353048599,1739524239259,-500.0,0.00013697,2]
[353048600,1739524239269,-500.0,0.00013697,2]
[353048601,1739524239278,-500.0,0.00013697,2]
[353048602,1739524239287,-500.0,0.00013697,2]